Workbook

Sheet паспорт
A1: ПАТ "УКРТРАНСГАЗ" | G1: ПАСПОРТ ФІЗИКО-ХІМІЧНИХ ПОКАЗНИКІВ ПРИРОДНОГО ГАЗУ № 664
A2: Філія "УМГ "ХАРКІВТРАНСГАЗ" | G2: переданого Харківським ЛВУМГ та прийнятого ПАТ "Харківгаз", ПАТ "Харківміськгаз"
A3: Харківський п/м Харківського ЛВУМГ | G3: Маршрут № 664
A4: Вимірювальна хіміко-аналітична лабораторія
A5: Свідоцтво про атестацію № 100-359/2015 чинне до 20.12.18 р. | K5: з газопроводу ШБКБ | V5: за період з | X5: 01.02.2017 р. | Z5: по | AA5: 28.02.2017 р.
A7: Число місяця | B7: Компонентний склад, мол. % | N7: Фізико-хімічні показники газу обчислені на основі компонентного складу, 101,325 кПа | X7: Температура точки роси за вологою (Р = 3.92 МПа), °С | Y7: Температура точки роси за вуглеводнями, °С | Z7: Вміст сірководню, г/м3 | AA7: Вміст меркаптанової сірки, г/м3 | AB7: Вміст механічних домішок, г/м3
N8: Густина абсолютна, кг/м3,при 20 °С, | O8: Температура вимірювання/згоряння при 20/25°С
B9: метан, С1 | C9: етан, С2 | D9: пропан, С3 | E9: ізо-бутан, і-С4 | F9: н-бутан, н-С4 | G9: нео-пентан, нео-С5 | H9: ізо-пентан, і-С5 | I9: н-пентан, н-С5 | J9: гексани та вищі, С6+ | K9: кисень, О2 | L9: азот, N2 | M9: діоксид вуглецю, CО2 | O9: Теплота згоряння нижча | R9: Теплота згоряння вища | U9: Число Воббе вище
O10: ккал/м³ | P10: МДж/м³ | Q10: кВт⋅год/м³ | R10: ккал/м³ | S10: МДж/м³ | T10: кВт⋅год/м³ | U10: ккал/м³ | V10: МДж/м³ | W10: кВт⋅год/м³
A11: 1 | B11: 94.9407 | C11: 2.8026 | D11: 0.7191 | E11: 0.1018 | F11: 0.1324 | G11: 0.0051 | H11: 0.0354 | I11: 0.0279 | J11: 0.0893 | K11: 0.0033 | L11: 0.9549 | M11: 0.1875 | N11: 0.7084 | O11: =P11*238.8459 -> 8244.960468 | P11: 34.52 | Q11: =P11/3.6 -> 9.588888889 | R11: =S11*238.8459 -> 9135.855675 | S11: 38.25 | T11: =S11/3.6 -> 10.625 | U11: =V11*238.8459 -> 11911.24503 | V11: 49.87 | W11: =V11/3.6 -> 13.85277778 | AC11: =SUM(B11:M11)+$K$42+$N$42 -> 100
A12: 2 | O12: =P12*238.8459 -> 8244.960468 | P12: 34.52 | Q12: 9.588888889 | R12: =S12*238.8459 -> 9135.855675 | S12: 38.25 | T12: =S12/3.6 -> 10.625 | U12: =V12*238.8459 -> 11911.24503 | V12: 49.87 | W12: =V12/3.6 -> 13.85277778 | AC12: 0
A13: 3 | B13: 94.7213 | C13: 2.9477 | D13: 0.7299 | E13: 0.1006 | F13: 0.1361 | G13: 0.0054 | H13: 0.0366 | I13: 0.0291 | J13: 0.0943 | K13: 0.0036 | L13: 1.0216 | M13: 0.1737 | N13: 0.7098 | O13: 8254.514304 | P13: 34.56 | Q13: 9.6 | R13: 9145.409511 | S13: 38.29 | T13: 10.63611111 | U13: 11913.63349 | V13: 49.88 | W13: =V13/3.6 -> 13.85555556 | X13: -9.8 | Y13: -4.5 | Z13: 0.0008 | AA13: 0.0002 | AB13: відсутні | AC13: 99.9999 | AD13: =IF(AC13=100,"ОК"," ") -> 
A14: 4 | O14: 8254.514304 | P14: 34.56 | Q14: 9.6 | R14: 9145.409511 | S14: 38.29 | T14: 10.63611111 | U14: 11913.63349 | V14: 49.88 | W14: 13.85555556 | AC14: 0 | AD14: =IF(AC14=100,"ОК"," ") -> 
A15: 5 | O15: 8254.514304 | P15: 34.56 | Q15: 9.6 | R15: 9145.409511 | S15: 38.29 | T15: 10.63611111 | U15: 11913.63349 | V15: 49.88 | W15: 13.85555556 | AC15: 0
A16: 6 | O16: 8254.514304 | P16: 34.56 | Q16: 9.6 | R16: 9145.409511 | S16: 38.29 | T16: 10.63611111 | U16: 11913.63349 | V16: 49.88 | W16: 13.85555556 | AC16: 0
A17: 7 | B17: 94.4869 | C17: 3.0754 | D17: 0.7479 | E17: 0.1016 | F17: 0.1442 | G17: 0.0062 | H17: 0.0418 | I17: 0.0346 | J17: 0.1067 | K17: 0.0039 | L17: 1.0679 | M17: 0.1829 | N17: 0.7119 | O17: 8268.845058 | P17: 34.62 | Q17: 9.616666667 | R17: 9159.740265 | S17: 38.35 | T17: 10.65277778 | U17: 11913.63349 | V17: 49.88 | W17: 13.85555556 | X17: -9.4 | Y17: -4 | AC17: 100 | AD17: ОК
A18: 8 | B18: 94.0133 | C18: 3.3983 | D18: 0.8113 | E18: 0.0987 | F18: 0.1335 | G18: 0.0049 | H18: 0.0324 | I18: 0.03 | J18: 0.0603 | L18: 1.2481 | M18: 0.1692 | N18: 0.7133 | O18: 8264.06814 | P18: 34.6 | Q18: 9.611111111 | R18: 9157.351806 | S18: 38.34 | T18: 10.65 | U18: 11901.6912 | V18: 49.83 | W18: 13.84166667 | AC18: 100 | AD18: ОК
A19: 9 | B19: 93.6222 | C19: 3.6249 | D19: 0.8656 | E19: 0.1029 | F19: 0.1401 | G19: 0.0049 | H19: 0.0318 | I19: 0.0294 | J19: 0.0556 | L19: 1.333 | M19: 0.1899 | N19: 0.7159 | O19: 8276.010435 | P19: 34.65 | Q19: 9.625 | R19: =S19*238.8459 -> 9171.68256 | S19: 38.4 | T19: =S19/3.6 -> 10.66666667 | U19: 11896.91428 | V19: 49.81 | W19: 13.83611111 | AC19: 100.0003
A20: 10 | O20: 8276.010435 | P20: 34.65 | Q20: =P20/3.6 -> 9.625 | R20: =S20*238.8459 -> 9171.68256 | S20: 38.4 | T20: =S20/3.6 -> 10.66666667 | U20: 11896.91428 | V20: 49.81 | W20: 13.83611111 | AC20: 0
A21: 11 | O21: 8276.010435 | P21: 34.65 | Q21: 9.625 | R21: 9171.68256 | S21: 38.4 | T21: =S21/3.6 -> 10.66666667 | U21: 11896.91428 | V21: 49.81 | W21: 13.83611111 | AC21: 0
A22: 12 | B22: 93.7306 | C22: 3.5368 | D22: 0.8074 | E22: 0.1026 | F22: 0.1546 | G22: 0.0065 | H22: 0.038 | I22: 0.0367 | J22: 0.0612 | L22: 1.2961 | M22: 0.2295 | N22: 0.7158 | O22: 8271.233517 | P22: 34.63 | Q22: 9.619444444 | R22: 9166.905642 | S22: 38.38 | T22: 10.66111111 | U22: 11889.7489 | V22: 49.78 | W22: 13.82777778 | AC22: 100 | AD22: ОК
A23: 13 | B23: 93.8661 | C23: 3.4663 | D23: 0.8043 | E23: 0.1045 | F23: 0.1552 | G23: 0.0065 | H23: 0.0396 | I23: 0.0378 | J23: 0.064 | L23: 1.2359 | M23: 0.2196 | N23: 0.7151 | O23: 8273.621976 | P23: 34.64 | Q23: 9.622222222 | R23: 9169.294101 | S23: 38.39 | T23: 10.66388889 | U23: 11899.30274 | V23: 49.82 | W23: 13.83888889 | AC23: 99.9998
A24: 14 | B24: 93.866 | C24: 3.4554 | D24: 0.8035 | E24: 0.1043 | F24: 0.1568 | G24: 0.0065 | H24: 0.0423 | I24: 0.0384 | J24: 0.0648 | L24: 1.2413 | M24: 0.2206 | N24: 0.7152 | O24: 8273.621976 | P24: 34.64 | Q24: 9.622222222 | R24: 9169.294101 | S24: 38.39 | T24: 10.66388889 | U24: 11899.30274 | V24: 49.82 | W24: 13.83888889 | X24: -8.8 | Y24: -3.7 | AC24: 99.9999
A25: 15 | B25: 93.7945 | C25: 3.4946 | D25: 0.8048 | E25: 0.1047 | F25: 0.1545 | G25: 0.0061 | H25: 0.0421 | I25: 0.0378 | J25: 0.0671 | L25: 1.2671 | M25: 0.2265 | N25: 0.7157 | O25: 8273.621976 | P25: 34.64 | Q25: 9.622222222 | R25: 9169.294101 | S25: 38.39 | T25: 10.66388889 | U25: 11896.91428 | V25: 49.81 | W25: 13.83611111 | AC25: 99.9998
A26: 16 | B26: 93.4411 | C26: 3.6816 | D26: 0.8482 | E26: 0.1084 | F26: 0.1622 | G26: 0.0065 | H26: 0.0443 | I26: 0.0396 | J26: 0.0676 | L26: 1.3321 | M26: 0.2684 | N26: 0.7184 | O26: 8285.564271 | P26: 34.69 | Q26: =P26/3.6 -> 9.636111111 | R26: 9181.236396 | S26: 38.44 | T26: =S26/3.6 -> 10.67777778 | U26: 11889.7489 | V26: 49.78 | W26: 13.82777778 | AC26: 100 | AD26: ОК
A27: 17 | O27: 8285.564271 | P27: 34.69 | Q27: 9.636111111 | R27: 9181.236396 | S27: 38.44 | T27: 10.67777778 | U27: 11889.7489 | V27: 49.78 | W27: 13.82777778 | AC27: 0
A28: 18 | O28: 8285.564271 | P28: 34.69 | Q28: 9.636111111 | R28: 9181.236396 | S28: 38.44 | T28: 10.67777778 | U28: 11889.7489 | V28: 49.78 | W28: 13.82777778 | AC28: 0
A29: 19 | B29: 92.85 | C29: 4.0028 | D29: 0.9073 | E29: 0.1115 | F29: 0.1773 | G29: 0.0074 | H29: 0.044 | I29: 0.043 | J29: 0.0718 | L29: 1.4454 | M29: 0.3395 | N29: 0.7229 | O29: 8304.671943 | P29: 34.77 | Q29: 9.658333333 | R29: 9200.344068 | S29: 38.52 | T29: 10.7 | U29: 11877.80661 | V29: 49.73 | W29: 13.81388889 | AC29: 100 | AD29: ОК
A30: 20 | B30: 92.7593 | C30: 3.9978 | D30: 0.9102 | E30: 0.1146 | F30: 0.186 | G30: 0.0079 | H30: 0.0479 | I30: 0.0461 | J30: 0.0763 | L30: 1.4936 | M30: 0.3603 | N30: 0.7239 | O30: 8304.671943 | P30: 34.77 | Q30: 9.658333333 | R30: 9200.344068 | S30: 38.52 | T30: 10.7 | U30: 11868.25277 | V30: 49.69 | W30: 13.80277778 | AC30: 100 | AD30: =IF(AC30=100,"ОК"," ") -> ОК
A31: 21 | B31: 93.2304 | C31: 3.633 | D31: 0.8986 | E31: 0.114 | F31: 0.1879 | G31: 0.0078 | H31: 0.045 | I31: 0.0479 | J31: 0.0778 | L31: 1.4535 | M31: 0.3041 | N31: 0.7208 | O31: 8287.95273 | P31: 34.7 | Q31: 9.638888889 | R31: 9183.624855 | S31: 38.45 | T31: 10.68055556 | U31: 11870.64123 | V31: 49.7 | W31: 13.80555556 | AC31: 100 | AD31: ОК
A32: 22 | B32: 93.4863 | C32: 3.2222 | D32: 0.9398 | E32: 0.1135 | F32: 0.1869 | G32: 0.0069 | H32: 0.035 | I32: 0.046 | J32: 0.0763 | L32: 1.5383 | M32: 0.3484 | N32: 0.7194 | O32: 8252.125845 | P32: 34.55 | Q32: 9.597222222 | R32: 9145.409511 | S32: 38.29 | T32: 10.63611111 | U32: 11834.81434 | V32: 49.55 | W32: 13.76388889 | AC32: 99.9996
A33: 23 | B33: 93.4385 | C33: 3.167 | D33: 0.949 | E33: 0.112 | F33: 0.1846 | G33: 0.0066 | H33: 0.0334 | I33: 0.046 | J33: 0.0746 | L33: 1.5977 | M33: 0.3904 | N33: 0.7199 | O33: 8240.18355 | P33: 34.5 | Q33: =P33/3.6 -> 9.583333333 | R33: 9133.467216 | S33: 38.24 | T33: =S33/3.6 -> 10.62222222 | U33: 11813.31821 | V33: 49.46 | W33: 13.73888889 | X33: -9.2 | Y33: -3.8 | Z33: 0.0009 | AA33: 0.0002 | AB33: відсутні | AC33: 99.9998 | AD33: =IF(AC33=100,"ОК"," ") -> 
A34: 24 | O34: 8240.18355 | P34: 34.5 | Q34: 9.583333333 | R34: 9133.467216 | S34: 38.24 | T34: 10.62222222 | U34: 11813.31821 | V34: 49.46 | W34: 13.73888889 | AC34: 0
A35: 25 | O35: 8240.18355 | P35: 34.5 | Q35: 9.583333333 | R35: 9133.467216 | S35: 38.24 | T35: 10.62222222 | U35: 11813.31821 | V35: 49.46 | W35: 13.73888889 | AC35: 0
A36: 26 | B36: 92.8567 | C36: 3.8923 | D36: 0.9121 | E36: 0.1145 | F36: 0.188 | G36: 0.0082 | H36: 0.0549 | I36: 0.0494 | J36: 0.0837 | L36: 1.4913 | M36: 0.3488 | N36: 0.7237 | O36: 8304.671943 | P36: 34.77 | Q36: 9.658333333 | R36: 9200.344068 | S36: 38.52 | T36: =S36/3.6 -> 10.7 | U36: 11870.64123 | V36: 49.7 | W36: 13.80555556 | AC36: 99.9999
A37: 27 | B37: 93.1771 | C37: 3.6863 | D37: 0.9064 | E37: 0.1135 | F37: 0.1898 | G37: 0.0075 | H37: 0.0445 | I37: 0.049 | J37: 0.0834 | L37: 1.4519 | M37: 0.2916 | N37: 0.7213 | O37: 8295.118107 | P37: 34.73 | Q37: 9.647222222 | R37: 9193.178691 | S37: 38.49 | T37: 10.69166667 | U37: 11877.80661 | V37: 49.73 | W37: 13.81388889 | AC37: 100.001
A38: 28 | B38: 93.153 | C38: 3.7018 | D38: 0.8832 | E38: 0.1146 | F38: 0.1833 | G38: 0.0072 | H38: 0.046 | I38: 0.048 | J38: 0.0848 | L38: 1.4356 | M38: 0.3439 | N38: 0.7216 | O38: 8290.341189 | P38: 34.71 | Q38: 9.641666667 | R38: 9186.013314 | S38: 38.46 | T38: 10.68333333 | U38: 11868.25277 | V38: 49.69 | W38: 13.80277778 | AC38: 100.0014
A39: 29 | O39: 8290.341189 | P39: 34.71 | Q39: =P39/3.6 -> 9.641666667 | R39: 9186.013314 | S39: 38.46 | T39: =S39/3.6 -> 10.68333333 | U39: 11868.25277 | V39: 49.69 | W39: 13.80277778 | AC39: 0
A40: 30 | O40: 8290.341189 | P40: 34.71 | Q40: =P40/3.6 -> 9.641666667 | R40: 9186.013314 | S40: 38.46 | T40: =S40/3.6 -> 10.68333333 | U40: 11868.25277 | V40: 49.69 | W40: 13.80277778 | AC40: 0
A41: 31 | O41: 8290.341189 | P41: 34.71 | Q41: =P41/3.6 -> 9.641666667 | R41: 9186.013314 | S41: 38.46 | T41: =S41/3.6 -> 10.68333333 | U41: 11868.25277 | V41: 49.69 | W41: 13.80277778 | AC41: 0
A42: Рівень одоризації відповідає чинним нормативним документам | O42: 8270 | P42: 34.63 | Q42: 9.62 | R42: 9164 | S42: 38.37 | T42: 10.66
H43: Середньозважене значення теплоти згоряння:
B46: В.о. Начальника Харківського ЛВУМГ Моторя О.А. 01.03.2017
C47: Підрозділу підприємства, якому підпорядкована лабораторія | O47: прізвище | R47: підпис | V47: дата
B48: Завідувач лабораторії Харківського п/м Харківського ЛВУМГ Крупчицький Д.О. 01.03.2017
C49: Лабораторія, де здійснювалось вимірювання газу | O49: прізвище | R49: підпис | V49: дата
B50: Начальник служби ГВ та М Щербак С.О. 01.03.2017
C51: Підрозділу, відповідального за облік газу за маршрутом | O51: прізвище | R51: підпис | V51: дата

Sheet розрахунок
A2: Додаток до Паспорту фізико-хімічних показників природного газу по маршруту № 830
A4: Число місяця | B4: Теплота згоряння вища, МДж/м3 | C4: Харківська область | H4: Загальний обсяг газу, м3
C5: Обсяг газу переданого за добу, м3
C6: ГРС-2 м. Харків ПАТ "Харківгаз" с. Берізка | D6: ГРС-2 м. Харків ПАТ "Харківміськгаз" | E6: ГРС Слатине ПАТ "Харківгаз" | F6: ГРС Золочів ПАТ "Харківгаз" | G6: ГРС Дергачи ПАТ "Харківгаз"
A7: 1 | B7: =паспорт!S11 -> 38.25 | C7: =ROUND(IF(ISNUMBER('[1] розрахунок (2)'!C7),'[1] розрахунок (2)'!C7,LEFT('[1] розрахунок (2)'!C7,LEN('[1] розрахунок (2)'!C7)-1)),2) -> 1125.61 | D7: =ROUND(IF(ISNUMBER('[1] розрахунок (2)'!D7),'[1] розрахунок (2)'!D7,LEFT('[1] розрахунок (2)'!D7,LEN('[1] розрахунок (2)'!D7)-1)),2) -> 2352169.51 | E7: =ROUND(IF(ISNUMBER('[1] розрахунок (2)'!E7),'[1] розрахунок (2)'!E7,LEFT('[1] розрахунок (2)'!E7,LEN('[1] розрахунок (2)'!E7)-1)),2) -> 112886.37 | F7: =ROUND(IF(ISNUMBER('[1] розрахунок (2)'!F7),'[1] розрахунок (2)'!F7,LEFT('[1] розрахунок (2)'!F7,LEN('[1] розрахунок (2)'!F7)-1)),2) -> 81741.09 | G7: =ROUND(IF(ISNUMBER('[1] розрахунок (2)'!G7),'[1] розрахунок (2)'!G7,LEFT('[1] розрахунок (2)'!G7,LEN('[1] розрахунок (2)'!G7)-1)),2) -> 210236.97 | H7: =SUM(C7:G7) -> 2758159.55
A8: 2 | B8: =паспорт!S12 -> 38.25 | C8: =ROUND(IF(ISNUMBER('[1] розрахунок (2)'!C8),'[1] розрахунок (2)'!C8,LEFT('[1] розрахунок (2)'!C8,LEN('[1] розрахунок (2)'!C8)-1)),2) -> 1049.87 | D8: =ROUND(IF(ISNUMBER('[1] розрахунок (2)'!D8),'[1] розрахунок (2)'!D8,LEFT('[1] розрахунок (2)'!D8,LEN('[1] розрахунок (2)'!D8)-1)),2) -> 2119861.38 | E8: =ROUND(IF(ISNUMBER('[1] розрахунок (2)'!E8),'[1] розрахунок (2)'!E8,LEFT('[1] розрахунок (2)'!E8,LEN('[1] розрахунок (2)'!E8)-1)),2) -> 100088.43 | F8: =ROUND(IF(ISNUMBER('[1] розрахунок (2)'!F8),'[1] розрахунок (2)'!F8,LEFT('[1] розрахунок (2)'!F8,LEN('[1] розрахунок (2)'!F8)-1)),2) -> 74884.27 | G8: =ROUND(IF(ISNUMBER('[1] розрахунок (2)'!G8),'[1] розрахунок (2)'!G8,LEFT('[1] розрахунок (2)'!G8,LEN('[1] розрахунок (2)'!G8)-1)),2) -> 190505.58 | H8: =SUM(C8:G8) -> 2486389.53
A9: 3 | B9: =паспорт!S13 -> 38.29 | C9: =ROUND(IF(ISNUMBER('[1] розрахунок (2)'!C9),'[1] розрахунок (2)'!C9,LEFT('[1] розрахунок (2)'!C9,LEN('[1] розрахунок (2)'!C9)-1)),2) -> 1041.25 | D9: =ROUND(IF(ISNUMBER('[1] розрахунок (2)'!D9),'[1] розрахунок (2)'!D9,LEFT('[1] розрахунок (2)'!D9,LEN('[1] розрахунок (2)'!D9)-1)),2) -> 2056201.32 | E9: =ROUND(IF(ISNUMBER('[1] розрахунок (2)'!E9),'[1] розрахунок (2)'!E9,LEFT('[1] розрахунок (2)'!E9,LEN('[1] розрахунок (2)'!E9)-1)),2) -> 95401.64 | F9: =ROUND(IF(ISNUMBER('[1] розрахунок (2)'!F9),'[1] розрахунок (2)'!F9,LEFT('[1] розрахунок (2)'!F9,LEN('[1] розрахунок (2)'!F9)-1)),2) -> 70750.91 | G9: =ROUND(IF(ISNUMBER('[1] розрахунок (2)'!G9),'[1] розрахунок (2)'!G9,LEFT('[1] розрахунок (2)'!G9,LEN('[1] розрахунок (2)'!G9)-1)),2) -> 179687.16 | H9: =SUM(C9:G9) -> 2403082.28
A10: 4 | B10: =паспорт!S14 -> 38.29 | C10: =ROUND(IF(ISNUMBER('[1] розрахунок (2)'!C10),'[1] розрахунок (2)'!C10,LEFT('[1] розрахунок (2)'!C10,LEN('[1] розрахунок (2)'!C10)-1)),2) -> 1016.22 | D10: =ROUND(IF(ISNUMBER('[1] розрахунок (2)'!D10),'[1] розрахунок (2)'!D10,LEFT('[1] розрахунок (2)'!D10,LEN('[1] розрахунок (2)'!D10)-1)),2) -> 1969901.44 | E10: =ROUND(IF(ISNUMBER('[1] розрахунок (2)'!E10),'[1] розрахунок (2)'!E10,LEFT('[1] розрахунок (2)'!E10,LEN('[1] розрахунок (2)'!E10)-1)),2) -> 87900.41 | F10: =ROUND(IF(ISNUMBER('[1] розрахунок (2)'!F10),'[1] розрахунок (2)'!F10,LEFT('[1] розрахунок (2)'!F10,LEN('[1] розрахунок (2)'!F10)-1)),2) -> 65937.33 | G10: =ROUND(IF(ISNUMBER('[1] розрахунок (2)'!G10),'[1] розрахунок (2)'!G10,LEFT('[1] розрахунок (2)'!G10,LEN('[1] розрахунок (2)'!G10)-1)),2) -> 163291.03 | H10: =SUM(C10:G10) -> 2288046.43
A11: 5 | B11: =паспорт!S15 -> 38.29 | C11: =ROUND(IF(ISNUMBER('[1] розрахунок (2)'!C11),'[1] розрахунок (2)'!C11,LEFT('[1] розрахунок (2)'!C11,LEN('[1] розрахунок (2)'!C11)-1)),2) -> 1038.32 | D11: =ROUND(IF(ISNUMBER('[1] розрахунок (2)'!D11),'[1] розрахунок (2)'!D11,LEFT('[1] розрахунок (2)'!D11,LEN('[1] розрахунок (2)'!D11)-1)),2) -> 2102318.19 | E11: =ROUND(IF(ISNUMBER('[1] розрахунок (2)'!E11),'[1] розрахунок (2)'!E11,LEFT('[1] розрахунок (2)'!E11,LEN('[1] розрахунок (2)'!E11)-1)),2) -> 90177.03 | F11: =ROUND(IF(ISNUMBER('[1] розрахунок (2)'!F11),'[1] розрахунок (2)'!F11,LEFT('[1] розрахунок (2)'!F11,LEN('[1] розрахунок (2)'!F11)-1)),2) -> 67637.43 | G11: =ROUND(IF(ISNUMBER('[1] розрахунок (2)'!G11),'[1] розрахунок (2)'!G11,LEFT('[1] розрахунок (2)'!G11,LEN('[1] розрахунок (2)'!G11)-1)),2) -> 173340.52 | H11: =SUM(C11:G11) -> 2434511.49
A12: 6 | B12: =паспорт!S16 -> 38.29 | C12: =ROUND(IF(ISNUMBER('[1] розрахунок (2)'!C12),'[1] розрахунок (2)'!C12,LEFT('[1] розрахунок (2)'!C12,LEN('[1] розрахунок (2)'!C12)-1)),2) -> 1086.64 | D12: =ROUND(IF(ISNUMBER('[1] розрахунок (2)'!D12),'[1] розрахунок (2)'!D12,LEFT('[1] розрахунок (2)'!D12,LEN('[1] розрахунок (2)'!D12)-1)),2) -> 2288088.88 | E12: =ROUND(IF(ISNUMBER('[1] розрахунок (2)'!E12),'[1] розрахунок (2)'!E12,LEFT('[1] розрахунок (2)'!E12,LEN('[1] розрахунок (2)'!E12)-1)),2) -> 100978.34 | F12: =ROUND(IF(ISNUMBER('[1] розрахунок (2)'!F12),'[1] розрахунок (2)'!F12,LEFT('[1] розрахунок (2)'!F12,LEN('[1] розрахунок (2)'!F12)-1)),2) -> 75907.32 | G12: =ROUND(IF(ISNUMBER('[1] розрахунок (2)'!G12),'[1] розрахунок (2)'!G12,LEFT('[1] розрахунок (2)'!G12,LEN('[1] розрахунок (2)'!G12)-1)),2) -> 190128.58 | H12: =SUM(C12:G12) -> 2656189.76
A13: 7 | B13: =паспорт!S17 -> 38.35 | C13: =ROUND(IF(ISNUMBER('[1] розрахунок (2)'!C13),'[1] розрахунок (2)'!C13,LEFT('[1] розрахунок (2)'!C13,LEN('[1] розрахунок (2)'!C13)-1)),2) -> 1169.75 | D13: =ROUND(IF(ISNUMBER('[1] розрахунок (2)'!D13),'[1] розрахунок (2)'!D13,LEFT('[1] розрахунок (2)'!D13,LEN('[1] розрахунок (2)'!D13)-1)),2) -> 2466903.38 | E13: =ROUND(IF(ISNUMBER('[1] розрахунок (2)'!E13),'[1] розрахунок (2)'!E13,LEFT('[1] розрахунок (2)'!E13,LEN('[1] розрахунок (2)'!E13)-1)),2) -> 111426.26 | F13: =ROUND(IF(ISNUMBER('[1] розрахунок (2)'!F13),'[1] розрахунок (2)'!F13,LEFT('[1] розрахунок (2)'!F13,LEN('[1] розрахунок (2)'!F13)-1)),2) -> 82628.13 | G13: =ROUND(IF(ISNUMBER('[1] розрахунок (2)'!G13),'[1] розрахунок (2)'!G13,LEFT('[1] розрахунок (2)'!G13,LEN('[1] розрахунок (2)'!G13)-1)),2) -> 209778.34 | H13: =SUM(C13:G13) -> 2871905.86
A14: 8 | B14: =паспорт!S18 -> 38.34 | C14: =ROUND(IF(ISNUMBER('[1] розрахунок (2)'!C14),'[1] розрахунок (2)'!C14,LEFT('[1] розрахунок (2)'!C14,LEN('[1] розрахунок (2)'!C14)-1)),2) -> 1235.45 | D14: =ROUND(IF(ISNUMBER('[1] розрахунок (2)'!D14),'[1] розрахунок (2)'!D14,LEFT('[1] розрахунок (2)'!D14,LEN('[1] розрахунок (2)'!D14)-1)),2) -> 2603307.88 | E14: =ROUND(IF(ISNUMBER('[1] розрахунок (2)'!E14),'[1] розрахунок (2)'!E14,LEFT('[1] розрахунок (2)'!E14,LEN('[1] розрахунок (2)'!E14)-1)),2) -> 120587.77 | F14: =ROUND(IF(ISNUMBER('[1] розрахунок (2)'!F14),'[1] розрахунок (2)'!F14,LEFT('[1] розрахунок (2)'!F14,LEN('[1] розрахунок (2)'!F14)-1)),2) -> 88375.36 | G14: =ROUND(IF(ISNUMBER('[1] розрахунок (2)'!G14),'[1] розрахунок (2)'!G14,LEFT('[1] розрахунок (2)'!G14,LEN('[1] розрахунок (2)'!G14)-1)),2) -> 227518.77 | H14: =SUM(C14:G14) -> 3041025.23
A15: 9 | B15: =паспорт!S19 -> 38.4 | C15: =ROUND(IF(ISNUMBER('[1] розрахунок (2)'!C15),'[1] розрахунок (2)'!C15,LEFT('[1] розрахунок (2)'!C15,LEN('[1] розрахунок (2)'!C15)-1)),2) -> 1219.31 | D15: =ROUND(IF(ISNUMBER('[1] розрахунок (2)'!D15),'[1] розрахунок (2)'!D15,LEFT('[1] розрахунок (2)'!D15,LEN('[1] розрахунок (2)'!D15)-1)),2) -> 2520717 | E15: =ROUND(IF(ISNUMBER('[1] розрахунок (2)'!E15),'[1] розрахунок (2)'!E15,LEFT('[1] розрахунок (2)'!E15,LEN('[1] розрахунок (2)'!E15)-1)),2) -> 118745.56 | F15: =ROUND(IF(ISNUMBER('[1] розрахунок (2)'!F15),'[1] розрахунок (2)'!F15,LEFT('[1] розрахунок (2)'!F15,LEN('[1] розрахунок (2)'!F15)-1)),2) -> 86148.11 | G15: =ROUND(IF(ISNUMBER('[1] розрахунок (2)'!G15),'[1] розрахунок (2)'!G15,LEFT('[1] розрахунок (2)'!G15,LEN('[1] розрахунок (2)'!G15)-1)),2) -> 226406.16 | H15: =SUM(C15:G15) -> 2953236.14
A16: 10 | B16: =паспорт!S20 -> 38.4 | C16: =ROUND(IF(ISNUMBER('[1] розрахунок (2)'!C16),'[1] розрахунок (2)'!C16,LEFT('[1] розрахунок (2)'!C16,LEN('[1] розрахунок (2)'!C16)-1)),2) -> 1134.59 | D16: =ROUND(IF(ISNUMBER('[1] розрахунок (2)'!D16),'[1] розрахунок (2)'!D16,LEFT('[1] розрахунок (2)'!D16,LEN('[1] розрахунок (2)'!D16)-1)),2) -> 2312548.51 | E16: =ROUND(IF(ISNUMBER('[1] розрахунок (2)'!E16),'[1] розрахунок (2)'!E16,LEFT('[1] розрахунок (2)'!E16,LEN('[1] розрахунок (2)'!E16)-1)),2) -> 106622.13 | F16: =ROUND(IF(ISNUMBER('[1] розрахунок (2)'!F16),'[1] розрахунок (2)'!F16,LEFT('[1] розрахунок (2)'!F16,LEN('[1] розрахунок (2)'!F16)-1)),2) -> 79063.77 | G16: =ROUND(IF(ISNUMBER('[1] розрахунок (2)'!G16),'[1] розрахунок (2)'!G16,LEFT('[1] розрахунок (2)'!G16,LEN('[1] розрахунок (2)'!G16)-1)),2) -> 205610 | H16: =SUM(C16:G16) -> 2704979
A17: 11 | B17: =паспорт!S21 -> 38.4 | C17: =ROUND(IF(ISNUMBER('[1] розрахунок (2)'!C17),'[1] розрахунок (2)'!C17,LEFT('[1] розрахунок (2)'!C17,LEN('[1] розрахунок (2)'!C17)-1)),2) -> 1010.09 | D17: =ROUND(IF(ISNUMBER('[1] розрахунок (2)'!D17),'[1] розрахунок (2)'!D17,LEFT('[1] розрахунок (2)'!D17,LEN('[1] розрахунок (2)'!D17)-1)),2) -> 2134746.94 | E17: =ROUND(IF(ISNUMBER('[1] розрахунок (2)'!E17),'[1] розрахунок (2)'!E17,LEFT('[1] розрахунок (2)'!E17,LEN('[1] розрахунок (2)'!E17)-1)),2) -> 95242.76 | F17: =ROUND(IF(ISNUMBER('[1] розрахунок (2)'!F17),'[1] розрахунок (2)'!F17,LEFT('[1] розрахунок (2)'!F17,LEN('[1] розрахунок (2)'!F17)-1)),2) -> 71721.47 | G17: =ROUND(IF(ISNUMBER('[1] розрахунок (2)'!G17),'[1] розрахунок (2)'!G17,LEFT('[1] розрахунок (2)'!G17,LEN('[1] розрахунок (2)'!G17)-1)),2) -> 185217.78 | H17: =SUM(C17:G17) -> 2487939.04
A18: 12 | B18: =паспорт!S22 -> 38.38 | C18: =ROUND(IF(ISNUMBER('[1] розрахунок (2)'!C18),'[1] розрахунок (2)'!C18,LEFT('[1] розрахунок (2)'!C18,LEN('[1] розрахунок (2)'!C18)-1)),2) -> 958.09 | D18: =ROUND(IF(ISNUMBER('[1] розрахунок (2)'!D18),'[1] розрахунок (2)'!D18,LEFT('[1] розрахунок (2)'!D18,LEN('[1] розрахунок (2)'!D18)-1)),2) -> 2109477.76 | E18: =ROUND(IF(ISNUMBER('[1] розрахунок (2)'!E18),'[1] розрахунок (2)'!E18,LEFT('[1] розрахунок (2)'!E18,LEN('[1] розрахунок (2)'!E18)-1)),2) -> 88918.43 | F18: =ROUND(IF(ISNUMBER('[1] розрахунок (2)'!F18),'[1] розрахунок (2)'!F18,LEFT('[1] розрахунок (2)'!F18,LEN('[1] розрахунок (2)'!F18)-1)),2) -> 67758.29 | G18: =ROUND(IF(ISNUMBER('[1] розрахунок (2)'!G18),'[1] розрахунок (2)'!G18,LEFT('[1] розрахунок (2)'!G18,LEN('[1] розрахунок (2)'!G18)-1)),2) -> 173301.47 | H18: =SUM(C18:G18) -> 2440414.04
A19: 13 | B19: =паспорт!S23 -> 38.39 | C19: =ROUND(IF(ISNUMBER('[1] розрахунок (2)'!C19),'[1] розрахунок (2)'!C19,LEFT('[1] розрахунок (2)'!C19,LEN('[1] розрахунок (2)'!C19)-1)),2) -> 1004.7 | D19: =ROUND(IF(ISNUMBER('[1] розрахунок (2)'!D19),'[1] розрахунок (2)'!D19,LEFT('[1] розрахунок (2)'!D19,LEN('[1] розрахунок (2)'!D19)-1)),2) -> 2143548.32 | E19: =ROUND(IF(ISNUMBER('[1] розрахунок (2)'!E19),'[1] розрахунок (2)'!E19,LEFT('[1] розрахунок (2)'!E19,LEN('[1] розрахунок (2)'!E19)-1)),2) -> 89164.76 | F19: =ROUND(IF(ISNUMBER('[1] розрахунок (2)'!F19),'[1] розрахунок (2)'!F19,LEFT('[1] розрахунок (2)'!F19,LEN('[1] розрахунок (2)'!F19)-1)),2) -> 68322.48 | G19: =ROUND(IF(ISNUMBER('[1] розрахунок (2)'!G19),'[1] розрахунок (2)'!G19,LEFT('[1] розрахунок (2)'!G19,LEN('[1] розрахунок (2)'!G19)-1)),2) -> 176743.94 | H19: =SUM(C19:G19) -> 2478784.2
A20: 14 | B20: =паспорт!S24 -> 38.39 | C20: =ROUND(IF(ISNUMBER('[1] розрахунок (2)'!C20),'[1] розрахунок (2)'!C20,LEFT('[1] розрахунок (2)'!C20,LEN('[1] розрахунок (2)'!C20)-1)),2) -> 1000.57 | D20: =ROUND(IF(ISNUMBER('[1] розрахунок (2)'!D20),'[1] розрахунок (2)'!D20,LEFT('[1] розрахунок (2)'!D20,LEN('[1] розрахунок (2)'!D20)-1)),2) -> 2063580.01 | E20: =ROUND(IF(ISNUMBER('[1] розрахунок (2)'!E20),'[1] розрахунок (2)'!E20,LEFT('[1] розрахунок (2)'!E20,LEN('[1] розрахунок (2)'!E20)-1)),2) -> 92840.03 | F20: =ROUND(IF(ISNUMBER('[1] розрахунок (2)'!F20),'[1] розрахунок (2)'!F20,LEFT('[1] розрахунок (2)'!F20,LEN('[1] розрахунок (2)'!F20)-1)),2) -> 70044.41 | G20: =ROUND(IF(ISNUMBER('[1] розрахунок (2)'!G20),'[1] розрахунок (2)'!G20,LEFT('[1] розрахунок (2)'!G20,LEN('[1] розрахунок (2)'!G20)-1)),2) -> 178055.38 | H20: =SUM(C20:G20) -> 2405520.4
A21: 15 | B21: =паспорт!S25 -> 38.39 | C21: =ROUND(IF(ISNUMBER('[1] розрахунок (2)'!C21),'[1] розрахунок (2)'!C21,LEFT('[1] розрахунок (2)'!C21,LEN('[1] розрахунок (2)'!C21)-1)),2) -> 953.77 | D21: =ROUND(IF(ISNUMBER('[1] розрахунок (2)'!D21),'[1] розрахунок (2)'!D21,LEFT('[1] розрахунок (2)'!D21,LEN('[1] розрахунок (2)'!D21)-1)),2) -> 2043702.06 | E21: =ROUND(IF(ISNUMBER('[1] розрахунок (2)'!E21),'[1] розрахунок (2)'!E21,LEFT('[1] розрахунок (2)'!E21,LEN('[1] розрахунок (2)'!E21)-1)),2) -> 88822.41 | F21: =ROUND(IF(ISNUMBER('[1] розрахунок (2)'!F21),'[1] розрахунок (2)'!F21,LEFT('[1] розрахунок (2)'!F21,LEN('[1] розрахунок (2)'!F21)-1)),2) -> 65834.88 | G21: =ROUND(IF(ISNUMBER('[1] розрахунок (2)'!G21),'[1] розрахунок (2)'!G21,LEFT('[1] розрахунок (2)'!G21,LEN('[1] розрахунок (2)'!G21)-1)),2) -> 169676.64 | H21: =SUM(C21:G21) -> 2368989.76
A22: 16 | B22: =паспорт!S26 -> 38.44 | C22: =ROUND(IF(ISNUMBER('[1] розрахунок (2)'!C22),'[1] розрахунок (2)'!C22,LEFT('[1] розрахунок (2)'!C22,LEN('[1] розрахунок (2)'!C22)-1)),2) -> 992.6 | D22: =ROUND(IF(ISNUMBER('[1] розрахунок (2)'!D22),'[1] розрахунок (2)'!D22,LEFT('[1] розрахунок (2)'!D22,LEN('[1] розрахунок (2)'!D22)-1)),2) -> 2183512.63 | E22: =ROUND(IF(ISNUMBER('[1] розрахунок (2)'!E22),'[1] розрахунок (2)'!E22,LEFT('[1] розрахунок (2)'!E22,LEN('[1] розрахунок (2)'!E22)-1)),2) -> 92326.04 | F22: =ROUND(IF(ISNUMBER('[1] розрахунок (2)'!F22),'[1] розрахунок (2)'!F22,LEFT('[1] розрахунок (2)'!F22,LEN('[1] розрахунок (2)'!F22)-1)),2) -> 68397.63 | G22: =ROUND(IF(ISNUMBER('[1] розрахунок (2)'!G22),'[1] розрахунок (2)'!G22,LEFT('[1] розрахунок (2)'!G22,LEN('[1] розрахунок (2)'!G22)-1)),2) -> 180141.39 | H22: =SUM(C22:G22) -> 2525370.29
A23: 17 | B23: =паспорт!S27 -> 38.44 | C23: =ROUND(IF(ISNUMBER('[1] розрахунок (2)'!C23),'[1] розрахунок (2)'!C23,LEFT('[1] розрахунок (2)'!C23,LEN('[1] розрахунок (2)'!C23)-1)),2) -> 1004.41 | D23: =ROUND(IF(ISNUMBER('[1] розрахунок (2)'!D23),'[1] розрахунок (2)'!D23,LEFT('[1] розрахунок (2)'!D23,LEN('[1] розрахунок (2)'!D23)-1)),2) -> 2176494.01 | E23: =ROUND(IF(ISNUMBER('[1] розрахунок (2)'!E23),'[1] розрахунок (2)'!E23,LEFT('[1] розрахунок (2)'!E23,LEN('[1] розрахунок (2)'!E23)-1)),2) -> 93644.18 | F23: =ROUND(IF(ISNUMBER('[1] розрахунок (2)'!F23),'[1] розрахунок (2)'!F23,LEFT('[1] розрахунок (2)'!F23,LEN('[1] розрахунок (2)'!F23)-1)),2) -> 68836.28 | G23: =ROUND(IF(ISNUMBER('[1] розрахунок (2)'!G23),'[1] розрахунок (2)'!G23,LEFT('[1] розрахунок (2)'!G23,LEN('[1] розрахунок (2)'!G23)-1)),2) -> 177568.61 | H23: =SUM(C23:G23) -> 2517547.49
A24: 18 | B24: =паспорт!S28 -> 38.44 | C24: =ROUND(IF(ISNUMBER('[1] розрахунок (2)'!C24),'[1] розрахунок (2)'!C24,LEFT('[1] розрахунок (2)'!C24,LEN('[1] розрахунок (2)'!C24)-1)),2) -> 923.38 | D24: =ROUND(IF(ISNUMBER('[1] розрахунок (2)'!D24),'[1] розрахунок (2)'!D24,LEFT('[1] розрахунок (2)'!D24,LEN('[1] розрахунок (2)'!D24)-1)),2) -> 1988139.13 | E24: =ROUND(IF(ISNUMBER('[1] розрахунок (2)'!E24),'[1] розрахунок (2)'!E24,LEFT('[1] розрахунок (2)'!E24,LEN('[1] розрахунок (2)'!E24)-1)),2) -> 83740.59 | F24: =ROUND(IF(ISNUMBER('[1] розрахунок (2)'!F24),'[1] розрахунок (2)'!F24,LEFT('[1] розрахунок (2)'!F24,LEN('[1] розрахунок (2)'!F24)-1)),2) -> 63094.13 | G24: =ROUND(IF(ISNUMBER('[1] розрахунок (2)'!G24),'[1] розрахунок (2)'!G24,LEFT('[1] розрахунок (2)'!G24,LEN('[1] розрахунок (2)'!G24)-1)),2) -> 159105.44 | H24: =SUM(C24:G24) -> 2295002.67
A25: 19 | B25: =паспорт!S29 -> 38.52 | C25: =ROUND(IF(ISNUMBER('[1] розрахунок (2)'!C25),'[1] розрахунок (2)'!C25,LEFT('[1] розрахунок (2)'!C25,LEN('[1] розрахунок (2)'!C25)-1)),2) -> 872.88 | D25: =ROUND(IF(ISNUMBER('[1] розрахунок (2)'!D25),'[1] розрахунок (2)'!D25,LEFT('[1] розрахунок (2)'!D25,LEN('[1] розрахунок (2)'!D25)-1)),2) -> 1908931.75 | E25: =ROUND(IF(ISNUMBER('[1] розрахунок (2)'!E25),'[1] розрахунок (2)'!E25,LEFT('[1] розрахунок (2)'!E25,LEN('[1] розрахунок (2)'!E25)-1)),2) -> 77290.23 | F25: =ROUND(IF(ISNUMBER('[1] розрахунок (2)'!F25),'[1] розрахунок (2)'!F25,LEFT('[1] розрахунок (2)'!F25,LEN('[1] розрахунок (2)'!F25)-1)),2) -> 57966.28 | G25: =ROUND(IF(ISNUMBER('[1] розрахунок (2)'!G25),'[1] розрахунок (2)'!G25,LEFT('[1] розрахунок (2)'!G25,LEN('[1] розрахунок (2)'!G25)-1)),2) -> 149426.09 | H25: =SUM(C25:G25) -> 2194487.23
A26: 20 | B26: =паспорт!S30 -> 38.52 | C26: =ROUND(IF(ISNUMBER('[1] розрахунок (2)'!C26),'[1] розрахунок (2)'!C26,LEFT('[1] розрахунок (2)'!C26,LEN('[1] розрахунок (2)'!C26)-1)),2) -> 824.16 | D26: =ROUND(IF(ISNUMBER('[1] розрахунок (2)'!D26),'[1] розрахунок (2)'!D26,LEFT('[1] розрахунок (2)'!D26,LEN('[1] розрахунок (2)'!D26)-1)),2) -> 2017431.19 | E26: =ROUND(IF(ISNUMBER('[1] розрахунок (2)'!E26),'[1] розрахунок (2)'!E26,LEFT('[1] розрахунок (2)'!E26,LEN('[1] розрахунок (2)'!E26)-1)),2) -> 72583.19 | F26: =ROUND(IF(ISNUMBER('[1] розрахунок (2)'!F26),'[1] розрахунок (2)'!F26,LEFT('[1] розрахунок (2)'!F26,LEN('[1] розрахунок (2)'!F26)-1)),2) -> 54926.89 | G26: =ROUND(IF(ISNUMBER('[1] розрахунок (2)'!G26),'[1] розрахунок (2)'!G26,LEFT('[1] розрахунок (2)'!G26,LEN('[1] розрахунок (2)'!G26)-1)),2) -> 140345.53 | H26: =SUM(C26:G26) -> 2286110.96
A27: 21 | B27: =паспорт!S31 -> 38.45 | C27: =ROUND(IF(ISNUMBER('[1] розрахунок (2)'!C27),'[1] розрахунок (2)'!C27,LEFT('[1] розрахунок (2)'!C27,LEN('[1] розрахунок (2)'!C27)-1)),2) -> 826.29 | D27: =ROUND(IF(ISNUMBER('[1] розрахунок (2)'!D27),'[1] розрахунок (2)'!D27,LEFT('[1] розрахунок (2)'!D27,LEN('[1] розрахунок (2)'!D27)-1)),2) -> 2003833.31 | E27: =ROUND(IF(ISNUMBER('[1] розрахунок (2)'!E27),'[1] розрахунок (2)'!E27,LEFT('[1] розрахунок (2)'!E27,LEN('[1] розрахунок (2)'!E27)-1)),2) -> 73120.74 | F27: =ROUND(IF(ISNUMBER('[1] розрахунок (2)'!F27),'[1] розрахунок (2)'!F27,LEFT('[1] розрахунок (2)'!F27,LEN('[1] розрахунок (2)'!F27)-1)),2) -> 54275.08 | G27: =ROUND(IF(ISNUMBER('[1] розрахунок (2)'!G27),'[1] розрахунок (2)'!G27,LEFT('[1] розрахунок (2)'!G27,LEN('[1] розрахунок (2)'!G27)-1)),2) -> 139033.72 | H27: =SUM(C27:G27) -> 2271089.14
A28: 22 | B28: =паспорт!S32 -> 38.29 | C28: =ROUND(IF(ISNUMBER('[1] розрахунок (2)'!C28),'[1] розрахунок (2)'!C28,LEFT('[1] розрахунок (2)'!C28,LEN('[1] розрахунок (2)'!C28)-1)),2) -> 804.37 | D28: =ROUND(IF(ISNUMBER('[1] розрахунок (2)'!D28),'[1] розрахунок (2)'!D28,LEFT('[1] розрахунок (2)'!D28,LEN('[1] розрахунок (2)'!D28)-1)),2) -> 1906715.63 | E28: =ROUND(IF(ISNUMBER('[1] розрахунок (2)'!E28),'[1] розрахунок (2)'!E28,LEFT('[1] розрахунок (2)'!E28,LEN('[1] розрахунок (2)'!E28)-1)),2) -> 70490.63 | F28: =ROUND(IF(ISNUMBER('[1] розрахунок (2)'!F28),'[1] розрахунок (2)'!F28,LEFT('[1] розрахунок (2)'!F28,LEN('[1] розрахунок (2)'!F28)-1)),2) -> 53716.63 | G28: =ROUND(IF(ISNUMBER('[1] розрахунок (2)'!G28),'[1] розрахунок (2)'!G28,LEFT('[1] розрахунок (2)'!G28,LEN('[1] розрахунок (2)'!G28)-1)),2) -> 134881.02 | H28: =SUM(C28:G28) -> 2166608.28
A29: 23 | B29: =паспорт!S33 -> 38.24 | C29: =ROUND(IF(ISNUMBER('[1] розрахунок (2)'!C29),'[1] розрахунок (2)'!C29,LEFT('[1] розрахунок (2)'!C29,LEN('[1] розрахунок (2)'!C29)-1)),2) -> 816.33 | D29: =ROUND(IF(ISNUMBER('[1] розрахунок (2)'!D29),'[1] розрахунок (2)'!D29,LEFT('[1] розрахунок (2)'!D29,LEN('[1] розрахунок (2)'!D29)-1)),2) -> 1884732.87 | E29: =ROUND(IF(ISNUMBER('[1] розрахунок (2)'!E29),'[1] розрахунок (2)'!E29,LEFT('[1] розрахунок (2)'!E29,LEN('[1] розрахунок (2)'!E29)-1)),2) -> 72330.19 | F29: =ROUND(IF(ISNUMBER('[1] розрахунок (2)'!F29),'[1] розрахунок (2)'!F29,LEFT('[1] розрахунок (2)'!F29,LEN('[1] розрахунок (2)'!F29)-1)),2) -> 53902.84 | G29: =ROUND(IF(ISNUMBER('[1] розрахунок (2)'!G29),'[1] розрахунок (2)'!G29,LEFT('[1] розрахунок (2)'!G29,LEN('[1] розрахунок (2)'!G29)-1)),2) -> 135368.89 | H29: =SUM(C29:G29) -> 2147151.12
A30: 24 | B30: =паспорт!S34 -> 38.24 | C30: =ROUND(IF(ISNUMBER('[1] розрахунок (2)'!C30),'[1] розрахунок (2)'!C30,LEFT('[1] розрахунок (2)'!C30,LEN('[1] розрахунок (2)'!C30)-1)),2) -> 748.39 | D30: =ROUND(IF(ISNUMBER('[1] розрахунок (2)'!D30),'[1] розрахунок (2)'!D30,LEFT('[1] розрахунок (2)'!D30,LEN('[1] розрахунок (2)'!D30)-1)),2) -> 1697481.63 | E30: =ROUND(IF(ISNUMBER('[1] розрахунок (2)'!E30),'[1] розрахунок (2)'!E30,LEFT('[1] розрахунок (2)'!E30,LEN('[1] розрахунок (2)'!E30)-1)),2) -> 66981.46 | F30: =ROUND(IF(ISNUMBER('[1] розрахунок (2)'!F30),'[1] розрахунок (2)'!F30,LEFT('[1] розрахунок (2)'!F30,LEN('[1] розрахунок (2)'!F30)-1)),2) -> 50498.24 | G30: =ROUND(IF(ISNUMBER('[1] розрахунок (2)'!G30),'[1] розрахунок (2)'!G30,LEFT('[1] розрахунок (2)'!G30,LEN('[1] розрахунок (2)'!G30)-1)),2) -> 124331.92 | H30: =SUM(C30:G30) -> 1940041.64
A31: 25 | B31: =паспорт!S35 -> 38.24 | C31: =ROUND(IF(ISNUMBER('[1] розрахунок (2)'!C31),'[1] розрахунок (2)'!C31,LEFT('[1] розрахунок (2)'!C31,LEN('[1] розрахунок (2)'!C31)-1)),2) -> 820.2 | D31: =ROUND(IF(ISNUMBER('[1] розрахунок (2)'!D31),'[1] розрахунок (2)'!D31,LEFT('[1] розрахунок (2)'!D31,LEN('[1] розрахунок (2)'!D31)-1)),2) -> 1889153.37 | E31: =ROUND(IF(ISNUMBER('[1] розрахунок (2)'!E31),'[1] розрахунок (2)'!E31,LEFT('[1] розрахунок (2)'!E31,LEN('[1] розрахунок (2)'!E31)-1)),2) -> 71897.27 | F31: =ROUND(IF(ISNUMBER('[1] розрахунок (2)'!F31),'[1] розрахунок (2)'!F31,LEFT('[1] розрахунок (2)'!F31,LEN('[1] розрахунок (2)'!F31)-1)),2) -> 54471.96 | G31: =ROUND(IF(ISNUMBER('[1] розрахунок (2)'!G31),'[1] розрахунок (2)'!G31,LEFT('[1] розрахунок (2)'!G31,LEN('[1] розрахунок (2)'!G31)-1)),2) -> 137903.5 | H31: =SUM(C31:G31) -> 2154246.3
A32: 26 | B32: =паспорт!S36 -> 38.52 | C32: =ROUND(IF(ISNUMBER('[1] розрахунок (2)'!C32),'[1] розрахунок (2)'!C32,LEFT('[1] розрахунок (2)'!C32,LEN('[1] розрахунок (2)'!C32)-1)),2) -> 833.43 | D32: =ROUND(IF(ISNUMBER('[1] розрахунок (2)'!D32),'[1] розрахунок (2)'!D32,LEFT('[1] розрахунок (2)'!D32,LEN('[1] розрахунок (2)'!D32)-1)),2) -> 1880343.88 | E32: =ROUND(IF(ISNUMBER('[1] розрахунок (2)'!E32),'[1] розрахунок (2)'!E32,LEFT('[1] розрахунок (2)'!E32,LEN('[1] розрахунок (2)'!E32)-1)),2) -> 75675.13 | F32: =ROUND(IF(ISNUMBER('[1] розрахунок (2)'!F32),'[1] розрахунок (2)'!F32,LEFT('[1] розрахунок (2)'!F32,LEN('[1] розрахунок (2)'!F32)-1)),2) -> 56540.16 | G32: =ROUND(IF(ISNUMBER('[1] розрахунок (2)'!G32),'[1] розрахунок (2)'!G32,LEFT('[1] розрахунок (2)'!G32,LEN('[1] розрахунок (2)'!G32)-1)),2) -> 142306.8 | H32: =SUM(C32:G32) -> 2155699.4
A33: 27 | B33: =паспорт!S37 -> 38.49 | C33: =ROUND(IF(ISNUMBER('[1] розрахунок (2)'!C33),'[1] розрахунок (2)'!C33,LEFT('[1] розрахунок (2)'!C33,LEN('[1] розрахунок (2)'!C33)-1)),2) -> 788.73 | D33: =ROUND(IF(ISNUMBER('[1] розрахунок (2)'!D33),'[1] розрахунок (2)'!D33,LEFT('[1] розрахунок (2)'!D33,LEN('[1] розрахунок (2)'!D33)-1)),2) -> 1787151.38 | E33: =ROUND(IF(ISNUMBER('[1] розрахунок (2)'!E33),'[1] розрахунок (2)'!E33,LEFT('[1] розрахунок (2)'!E33,LEN('[1] розрахунок (2)'!E33)-1)),2) -> 71638.91 | F33: =ROUND(IF(ISNUMBER('[1] розрахунок (2)'!F33),'[1] розрахунок (2)'!F33,LEFT('[1] розрахунок (2)'!F33,LEN('[1] розрахунок (2)'!F33)-1)),2) -> 55017.44 | G33: =ROUND(IF(ISNUMBER('[1] розрахунок (2)'!G33),'[1] розрахунок (2)'!G33,LEFT('[1] розрахунок (2)'!G33,LEN('[1] розрахунок (2)'!G33)-1)),2) -> 135635.83 | H33: =SUM(C33:G33) -> 2050232.29
A34: 28 | B34: =паспорт!S38 -> 38.46 | C34: =ROUND(IF(ISNUMBER('[1] розрахунок (2)'!C34),'[1] розрахунок (2)'!C34,LEFT('[1] розрахунок (2)'!C34,LEN('[1] розрахунок (2)'!C34)-1)),2) -> 771.14 | D34: =ROUND(IF(ISNUMBER('[1] розрахунок (2)'!D34),'[1] розрахунок (2)'!D34,LEFT('[1] розрахунок (2)'!D34,LEN('[1] розрахунок (2)'!D34)-1)),2) -> 1584866.56 | E34: =ROUND(IF(ISNUMBER('[1] розрахунок (2)'!E34),'[1] розрахунок (2)'!E34,LEFT('[1] розрахунок (2)'!E34,LEN('[1] розрахунок (2)'!E34)-1)),2) -> 67494.45 | F34: =ROUND(IF(ISNUMBER('[1] розрахунок (2)'!F34),'[1] розрахунок (2)'!F34,LEFT('[1] розрахунок (2)'!F34,LEN('[1] розрахунок (2)'!F34)-1)),2) -> 53464.17 | G34: =ROUND(IF(ISNUMBER('[1] розрахунок (2)'!G34),'[1] розрахунок (2)'!G34,LEFT('[1] розрахунок (2)'!G34,LEN('[1] розрахунок (2)'!G34)-1)),2) -> 128978.97 | H34: =SUM(C34:G34) -> 1835575.29
A35: 29 | B35: =паспорт!S39 -> 38.46 | C35: =ROUND(IF(ISNUMBER('[1] розрахунок (2)'!C35),'[1] розрахунок (2)'!C35,LEFT('[1] розрахунок (2)'!C35,LEN('[1] розрахунок (2)'!C35)-1)),2) -> 0 | D35: =ROUND(IF(ISNUMBER('[1] розрахунок (2)'!D35),'[1] розрахунок (2)'!D35,LEFT('[1] розрахунок (2)'!D35,LEN('[1] розрахунок (2)'!D35)-1)),2) -> 0 | E35: =ROUND(IF(ISNUMBER('[1] розрахунок (2)'!E35),'[1] розрахунок (2)'!E35,LEFT('[1] розрахунок (2)'!E35,LEN('[1] розрахунок (2)'!E35)-1)),2) -> 0 | F35: =ROUND(IF(ISNUMBER('[1] розрахунок (2)'!F35),'[1] розрахунок (2)'!F35,LEFT('[1] розрахунок (2)'!F35,LEN('[1] розрахунок (2)'!F35)-1)),2) -> 0 | G35: =ROUND(IF(ISNUMBER('[1] розрахунок (2)'!G35),'[1] розрахунок (2)'!G35,LEFT('[1] розрахунок (2)'!G35,LEN('[1] розрахунок (2)'!G35)-1)),2) -> 0 | H35: =SUM(C35:G35) -> 0
A36: 30 | B36: =паспорт!S40 -> 38.46 | C36: =ROUND(IF(ISNUMBER('[1] розрахунок (2)'!C36),'[1] розрахунок (2)'!C36,LEFT('[1] розрахунок (2)'!C36,LEN('[1] розрахунок (2)'!C36)-1)),2) -> 0 | D36: =ROUND(IF(ISNUMBER('[1] розрахунок (2)'!D36),'[1] розрахунок (2)'!D36,LEFT('[1] розрахунок (2)'!D36,LEN('[1] розрахунок (2)'!D36)-1)),2) -> 0 | E36: =ROUND(IF(ISNUMBER('[1] розрахунок (2)'!E36),'[1] розрахунок (2)'!E36,LEFT('[1] розрахунок (2)'!E36,LEN('[1] розрахунок (2)'!E36)-1)),2) -> 0 | F36: =ROUND(IF(ISNUMBER('[1] розрахунок (2)'!F36),'[1] розрахунок (2)'!F36,LEFT('[1] розрахунок (2)'!F36,LEN('[1] розрахунок (2)'!F36)-1)),2) -> 0 | G36: =ROUND(IF(ISNUMBER('[1] розрахунок (2)'!G36),'[1] розрахунок (2)'!G36,LEFT('[1] розрахунок (2)'!G36,LEN('[1] розрахунок (2)'!G36)-1)),2) -> 0 | H36: =SUM(C36:G36) -> 0
A37: 31 | B37: =паспорт!S41 -> 38.46 | C37: =ROUND(IF(ISNUMBER('[1] розрахунок (2)'!C37),'[1] розрахунок (2)'!C37,LEFT('[1] розрахунок (2)'!C37,LEN('[1] розрахунок (2)'!C37)-1)),2) -> 0 | D37: =ROUND(IF(ISNUMBER('[1] розрахунок (2)'!D37),'[1] розрахунок (2)'!D37,LEFT('[1] розрахунок (2)'!D37,LEN('[1] розрахунок (2)'!D37)-1)),2) -> 0 | E37: =ROUND(IF(ISNUMBER('[1] розрахунок (2)'!E37),'[1] розрахунок (2)'!E37,LEFT('[1] розрахунок (2)'!E37,LEN('[1] розрахунок (2)'!E37)-1)),2) -> 0 | F37: =ROUND(IF(ISNUMBER('[1] розрахунок (2)'!F37),'[1] розрахунок (2)'!F37,LEFT('[1] розрахунок (2)'!F37,LEN('[1] розрахунок (2)'!F37)-1)),2) -> 0 | G37: =ROUND(IF(ISNUMBER('[1] розрахунок (2)'!G37),'[1] розрахунок (2)'!G37,LEFT('[1] розрахунок (2)'!G37,LEN('[1] розрахунок (2)'!G37)-1)),2) -> 0 | H37: =SUM(C37:G37) -> 0
A38: Загальний обсяг газу, м3 | C38: =SUM(C7:C37) -> 27070.54 | D38: =SUM(D7:D37) -> 58195859.92 | E38: 2489015.34 | F38: =SUM(F7:F37) -> 1861862.98 | G38: 4744526.03 | H38: =SUM(H7:H37) -> 67318334.81
A39: Енергія, МДж | C39: =SUMPRODUCT(B7:B37,C7:C37) -> 1038649.953 | D39: =SUMPRODUCT(B7:B37,D7:D37) -> 2232961859 | E39: =SUMPRODUCT(B7:B37,E7:E37) -> 95498219.37 | F39: =SUMPRODUCT(B7:B37,F7:F37) -> 71436277.67 | G39: =SUMPRODUCT(B7:B37,G7:G37) -> 182040094.2 | H39: =SUMPRODUCT(B7:B37,H7:H37) -> 2582975100
A40: Теплота згоряння (середньозважене значення за місяць), МДж/м³ | C40: =C39/C38 -> 38.36827609 | D40: =D39/D38 -> 38.3697717 | E40: =E39/E38 -> 38.36787095 | F40: =F39/F38 -> 38.36817125 | G40: 38.36844672 | H40: 38.36956317
A41: Теплота згоряння (середньозважене значення за місяць), ккал/м³ | C41: =C40*238.8459 -> 9164.105435 | D41: =D40*238.8459 -> 9164.462655 | E41: 9164.008669 | F41: 9164.080394 | G41: 9164.146189 | H41: 9164.412849
A42: Теплота згоряння (середньозважене значення за місяць), кВт*год./м³ | C42: =C40/3.6 -> 10.65785447 | D42: =D40/3.6 -> 10.65826992 | E42: 10.65774193 | F42: 10.65782535 | G42: 10.65790187 | H42: 10.65821199

Sheet додаток
A2: Додаток до Паспорту фізико-хімічних показників природного газу №664
A4: Область | B4: ГРС, прямий споживач | C4: Cередньозважене значення вищої теплоти згоряння
C5: МДж/м³ | D5: ккал/м³ | E5: кВт*год./м³
A6: Вінницька область | B6: ГРС-2 м. Харків ПАТ "Харківгаз" с. Берізка | C6: 38.36827609 | D6: 9164.105435 | E6: 10.65785447
B7: ГРС-2 м. Харків ПАТ "Харківміськгаз" | C7: 38.3697717 | D7: 9164.462655 | E7: 10.65826992
B8: ГРС Слатине ПАТ "Харківгаз" | C8: 38.36787095 | D8: 9164.008669 | E8: 10.65774193
B9: ГРС Золочів ПАТ "Харківгаз" | C9: 38.36817125 | D9: 9164.080394 | E9: 10.65782535
B10: ГРС Дергачи ПАТ "Харківгаз" | C10: 38.36844672 | D10: 9164.146189 | E10: 10.65790187
A11: Середньозважене значення вищої теплоти згоряння по маршруту № 664 | C11: 38.36956317 | D11: 9164.412849 | E11: 10.65821199
A15: В.о. Начальника Харківського ЛВУМГ Моторя О.А. 01.03.2017
A16: Підрозділу підприємства, якому підпорядкована лабораторія | D16: прізвище | E16: підпис | F16: дата
A17: Завідувач лабораторії Харківського п/м Харківського ЛВУМГ Крупчицький Д.О. 01.03.2017
A18: Лабораторія, де здійснювалось вимірювання газу | D18: прізвище | E18: підпис | F18: дата
A19: Начальник служби ГВ та М Щербак С.О. 01.03.2017
A20: Підрозділу, відповідального за облік газу за маршрутом | D20: прізвище | E20: підпис | F20: дата

Sheet variablesList (hidden)
A1: 3 | B1: x:\gaysin | C1: 10, 11, 24, 25, 127, 128, 132, 180, 207, 215 | D1: x:\
B2: x:\Illinci
B3: x:\Talne
